Workbook

Sheet Deuda
D1: SERVICIO NACIONAL DE SALUD
D2: DIRECCION DE FISCALIZACION Y CONTROL
D3: COMPROMISO DE DEUDAS AL 31 DE DICIEMBRE 2025
A6: ESTABLECIMIENTO:___________________________________________________________________________ | C6: REGIONAL DE SALUD HIGUAMO
A8: NO | B8: NOMBRES PROVEEDOR | C8: DESCRIPCION (CONCEPTO) | D8: FUENTE FINANCIAMIENTOS (AF-VS) | E8: DEUDA AÑOS ANTERIORES 2022 | F8: MONTO AÑO 2023 | G8: MONTO AÑO 2024 | H8: MONTO AÑO 2025 AL 31 ENERO | I8: MONTO AÑO 2025 AL 31 DE MARZO | J8: MONTO AÑO 2025 AL 30 DE ABRIL | K8: MONTO AÑO 2025 AL 30 DE MAYO | L8: MONTO AÑO 2025 AL 30 DE JUNIO | M8: MONTO AL 31 DE JULIO | N8: MONTO AÑO 2025 AL 31 DE AGOSTO | O8: MONTO AÑO 2025 AL 30 DESEPTIEMBRE | P8: MONTO AÑO 2025 AL 30 DE OCTUBRE | Q8: MONTO AÑO 2025 AL 30 DE NOVIEMBRE | R8: MONTO AÑO 2025 AL 31 DE DICIEMBRE | S8: TOTAL ADEUDA
B9: OVIEDO FARMA SRL | C9: COMPRA DE NEVERA | D9: VENTA DE SERVICIO | G9: 742,000.00 | S9: =G9 -> 742,000.00
B10: AYUNTAMINETO MUNICIPAL | C10: ASEO Y ALBITRIO | D10: VENTA DE SERVICIO | H10: 152,070.00 | S10: =H10 -> 152,070.00
B11: SANTOS PEREZ CEDEÑO | C11: MANT DE EQUIPO | D11: VENTA DE SERVICIO | L11: 590.00 | S11: =L11 -> 590.00
B12: TOPOGRAFIA | C12: REMOZAMIENTO CPN YANIGUA | D12: VENTA DE SERVICIO | L12: 1,222,202.19 | S12: =L12 -> 1,222,202.19
B13: CENTRO FERRETERO DEL ESTE | C13: ARTICULOS FERRETEROS | D13: VENTA DE SERVICIO | L13: 40,774.61 | S13: =L13 -> 40,774.61
B14: COOAROM | C14: AGUA | D14: VENTA DE SERVICIO | L14: 17,040.00 | S14: =L14 -> 17,040.00
B15: SANTOS PEREZ CEDEÑO | C15: MANT DE EQUIPO DE TRANSPORTE | D15: VENTA DE SERVICIO | M15: 590.00 | S15: =M15 -> 590.00
B16: SANTOS PEREZ CEDEÑO | C16: MANT DE EQUIPO DE TRANSPORTE | D16: VENTA DE SERVICIO | M16: 1,180.00 | S16: =M16 -> 1,180.00
B17: SANTOS PEREZ CEDEÑO | C17: MANT DE EQUIPO DE TRANSPORTE | D17: VENTA DE SERVICIO | M17: 590.00 | S17: =M17 -> 590.00
B18: SANTOS PEREZ CEDEÑO | C18: MANT DE EQUIPO DE TRANSPORTE | D18: VENTA DE SERVICIO | M18: 590.00 | S18: =M18 -> 590.00
B19: SANTOS PEREZ CEDEÑO | C19: MANT DE EQUIPO DE TRANSPORTE | D19: VENTA DE SERVICIO | M19: 590.00 | S19: =M19 -> 590.00
B20: SANTOS PEREZ CEDEÑO | C20: MANT DE EQUIPO DE TRANSPORTE | D20: VENTA DE SERVICIO | M20: 590.00 | S20: =M20 -> 590.00
B21: ENMNUEL CENTRO DE GOMAS | C21: REPARACION DE VEHICULOS | D21: VENTA DE SERVICIO | M21: 767.00 | S21: =M21 -> 767.00
B22: SERVIS FRENO DIAZ | C22: MANT DE EQUIPO DE TRANSPORTE | D22: VENTA DE SERVICIO | N22: 12,200.00 | S22: =N22 -> 12,200.00
B23: CENTRO FERRETERO EL POLI | C23: ARTICULOS FERRETEROS | D23: VENTA DE SERVICIO | O23: 12,554.67 | S23: =O23 -> 12,554.67
B24: IMPRESORA YERALDIN | C24: SELLOS | D24: VENTA DE SERVICIO | O24: 40,828.00 | S24: =O24 -> 40,828.00
B25: CENTRO FERRETERO | C25: ARTICULOS FERRETEROS | D25: VENTA DE SERVICIO | P25: 88,932.12 | S25: =P25 -> 88,932.12
B26: R&L AUTO AIRE | C26: MANT DE EQUIPO DE TRANSPORTE | D26: VENTA DE SERVICIO | P26: 9,850.03 | S26: =P26 -> 9,850.03
B27: JARDIN ORIENTAL | C27: ALQUILERES | D27: VENTA DE SERVICIO | P27: 1,368.80 | S27: =P27 -> 1,368.80
B28: JARDIN ORIENTAL | C28: ALQUILER | D28: VENTA DE SERVICIO | P28: 7,080.00 | S28: =P28 -> 7,080.00
B29: SANTOS PEREZ CEDEÑO | C29: MANT DE EQUIPO DE TRANSPORTE | D29: VENTA DE SERVICIO | P29: 4,838.00 | S29: =P29 -> 4,838.00
B30: SANTOS PEREZ CEDEÑO | C30: MANT DE EQUIPO DE TRANSPORTE | D30: VENTA DE SERVICIO | P30: 5,428.00 | S30: =P30 -> 5,428.00
B31: SANTOS PEREZ CEDEÑO | C31: MANT D EEQUIPO DE TRANSPORTE | D31: VENTA DE SERVICIO | P31: 4,838.00 | S31: =P31 -> 4,838.00
B32: SANTOS PEREZ CEDEÑO | C32: MANT DE EQUIPO DE TRANSPORTE | D32: VENTA DE SERVICIO | P32: 5,428.00 | S32: =P32 -> 5,428.00
B33: JUAN DE LEON BERROA | C33: ALIMENTOS | D33: VENTA DE SERVICIO | P33: 19,470.00 | S33: =P33 -> 19,470.00
B34: JARDIN ORIENTAL | C34: ALQUILERES | D34: VENTA DE SERVICIO | Q34: 1,180.00 | S34: =Q34 -> 1,180.00
B35: DINAMED SRL | C35: MEDICAMENTOS | D35: VENTA DE SERVICIO | Q35: 109,411.24 | S35: =Q35 -> 109,411.24
B36: RAMIREZ PEÑA | C36: ALIEMTOS | D36: VENTA DE SERVICIO | Q36: 15,045.00 | S36: =Q36 -> 15,045.00
B37: DISTRIBUIDORA UNIVERSAL SA | C37: MANT DE EQUIPO DE COMPUTO | D37: VENTA DE SERVICIO | Q37: 2,116.92 | S37: =Q37 -> 2,116.92
B38: DISTRIBUIDORA UNIVERSAL SA | C38: MANT DE EQUIPO DE COMPUTO | D38: VENTA DE SERVICIO | Q38: 30,046.33 | S38: =Q38 -> 30,046.33
B39: CENTRO FERRETERO DEL ESTE | C39: ARTICULOS FERRETEROS | D39: VENTA DE SERVICIO | Q39: 1,979.99 | S39: =Q39 -> 1,979.99
B40: DISTRIBUIDORA UNIVERSAL SA | C40: MANT DE EQUIPO DE COMPUTO | D40: VENTA DE SERVICIO | Q40: 1,298.00 | S40: =Q40 -> 1,298.00
B41: DISTRIBUIDORA UNIVERSAL SA | C41: MANT DE EQUIPO DE COMPUTO | D41: VENTA DE SERVICIO | Q41: 1,298.00 | S41: =Q41 -> 1,298.00
B42: DISTRIBUIDORA UNIVERSAL SA | C42: MANT DE EQUIPO DE COMPUTO | D42: VENTA DE SERVICIO | Q42: 1,872.66 | S42: =Q42 -> 1,872.66
B43: CENTRO FERRETERO DEL ESTE | C43: ARTICULOS FERRETEROS | D43: VENTA DE SERVICIO | Q43: 34,079.97 | S43: =Q43 -> 34,079.97
B44: RAUL SANCHEZ | C44: MANY DE EQUIPO DE TRANSPORTE | D44: VENTA DE SERVICIO | Q44: 10,979.90 | S44: =Q44 -> 10,979.90
B45: DISTRIBUIDORA UNIVERSAL SA | C45: MANT DE EQUIPO COMPUTO | D45: VENTA DE SERVICIO | Q45: 1,298.00 | S45: =Q45 -> 1,298.00
B46: DISTRIBUIDORA UNIVERSAL SA | C46: MANT DE EQUIPÒ DE COMPUTO | D46: VENTA DE SERVICIO | Q46: 4,585.60 | S46: =Q46 -> 4,585.60
B47: DISTRIBUIDORA UNIVERSAL SA | C47: MANT DE EQUIPÒ DE COMPUTO | D47: VENTA DE SERVICIO | Q47: 1,298.00 | S47: =Q47 -> 1,298.00
B48: BIO-NOVA SRL | C48: HORNO ELECTRICO | D48: VENTA DE SERVICIO | S48: =Q48 -> 0
B49: DISTRIBUIDORA UNIVERSAL SA | C49: MANT DE EQUIPO COMPUTO | D49: VENTA DE SERVICIO | Q49: 1,298.00 | S49: =Q49 -> 1,298.00
B50: CARLOS ROBLES | C50: PATROCINIS | D50: VENTA DE SERVICIO | Q50: 30,000.00 | S50: =Q50 -> 30,000.00
B51: LUIS EMILIO | C51: MANT DE EQUIPO DE TRANSPORTE | D51: VENTA DE SERVICIO | Q51: 8,000.00 | S51: =Q51 -> 8,000.00
B52: IMPRESORA YERALDIN | C52: RECETARIOS | D52: VENTA DE SERVICIO | Q52: 108,855.00 | S52: =Q52 -> 108,855.00
B53: IMPRESORA YERALDIN | C53: SELLOS | D53: VENTA DE SERVICIO | Q53: 25,842.00 | S53: =Q53 -> 25,842.00
B54: IMPRESORA YERALDIN | C54: TARJETAS | D54: VENTA DE SERVICIO | Q54: 150,951.50 | S54: =Q54 -> 150,951.50
B55: VASQUEZ REPUESTOS Y SERVICIOS | C55: MANY DE EQUIPO DE TRANSPORTE | D55: VENTA DE SERVICIO | R55: 21,945.00 | S55: =R55 -> 21,945.00
B56: CENTRO FERRETERO DEL ESTE | C56: ARTICULOS FERRETEROS | D56: VENTA DE SERVICIO | R56: 13,967.44 | S56: =R56 -> 13,967.44
B57: RAMIREZ PEÑA | C57: ALIMENTOS | D57: VENTA DE SERVICIO | R57: 15,045.00 | S57: =R57 -> 15,045.00
B58: RAMIREZ PEÑA | C58: ALIMENTOS | D58: VENTA DE SERVICIO | R58: 26,904.00 | S58: =R58 -> 26,904.00
B59: JUAN DE LEON BERROA | C59: ALIMENTOS | D59: VENTA DE SERVICIO | R59: 43,188.00 | S59: =R59 -> 43,188.00
B60: JARDIN ORIENTAL | C60: ALQUILERES | D60: VENTA DE SERVICIO | R60: 1,298.00 | S60: =R60 -> 1,298.00
B61: JARDIN ORIENTAL | C61: ALQUILERES | D61: VENTA DE SERVICIO | R61: 1,534.00 | S61: =R61 -> 1,534.00
B62: ALMACENES IBERIA SRL | C62: ALIMENTOS | D62: VENTA DE SERVICIO | R62: 40,113.27 | S62: =R62 -> 40,113.27
B63: CENTRO FERRETERO DEL ESTE | C63: ARTICULOS FERRETEROS | D63: VENTA DE SERVICIO | R63: 23,515.00 | S63: =R63 -> 23,515.00
B64: R&L AUTO AIRE | C64: MANY DE EQUIPO DE TRANSPORTE | D64: VENTA DE SERVICIO | R64: 3,610.01 | S64: =R64 -> 3,610.01
B65: VASQUEZ REPUESTOS PARA AUTOS | C65: MANT DE EQUIPO DE TRANSPORTE | D65: VENTA DE SERVICIO | R65: 2,545.00 | S65: =R65 -> 2,545.00
B66: JARDIN ORIENTAL | C66: ALQUILERES | D66: VENTA DE SERVICIO | R66: 2,950.00 | S66: =R66 -> 2,950.00
B67: JUAN DE LEON BERROA | C67: ALIMENTOS | D67: VENTA DE SERVICIO | R67: 21,063.00 | S67: =R67 -> 21,063.00
B68: JUAN DE LEON BERROA | C68: ALIMENTOS | D68: VENTA DE SERVICIO | R68: 24,072.00 | S68: =R68 -> 24,072.00
B69: JUAN DE LEON BERROA | C69: ALIMENTOS | D69: VENTA DE SERVICIO | R69: 15,045.00 | S69: =R69 -> 15,045.00
B70: JUAN DE LEON BERROA | C70: ALIMENTOS | D70: VENTA DE SERVICIO | R70: 17,464.00 | S70: =R70 -> 17,464.00
B71: CENTRO FERRETERO DEL ESTES | C71: ARTICULOS FERRETERO | D71: VENTA DE SERVICIO | R71: 63,379.87 | S71: =R71 -> 63,379.87
B72: JUAN DE LEON BERROA | C72: ALIMENTOS | D72: VENTA DE SERVICIO | R72: 43,188.00 | S72: =R72 -> 43,188.00
B73: SLAYERS PEST | C73: FUMIGACION | D73: VENTA DE SERVICIO | R73: 27,730.00 | S73: =R73 -> 27,730.00
B74: VASQUEZ REPUESTOS Y SER | C74: MANT | D74: VENTA DE SERVICIO | R74: 2,995.00 | S74: =R74 -> 2,995.00
B75: FELICIA YESENIA CASTILLO | C75: ALIMENTOS | D75: VENTA DE SERVICIO | R75: 6,130.00 | S75: =R75 -> 6,130.00
B76: PAPELERIA CACTUS SRL | C76: MATERIAL DE OFICINA | D76: VENTA DE SERVICIO | R76: 19,700.00 | S76: =R76 -> 19,700.00
B77: VASQUEZ REPUESTOS Y SER | C77: ARTICULOS FERRETERO | D77: VENTA DE SERVICIO | R77: 4,885.00 | S77: =R77 -> 4,885.00
B78: BIO-NOVA SRL | C78: INSUMOS DE LABORATORIOS | D78: VENTA DE SERVICIO | R78: 32,187.80 | S78: =R78 -> 32,187.80
B79: JUAN DE LEON BERROA | C79: ALIMENTOS | D79: VENTA DE SERVICIO | R79: 43,188.00 | S79: =R79 -> 43,188.00
B80: ALMACENES IBERIA SRL | C80: MATERIAL DE LIMPIEZA | D80: VENTA DE SERVICIO | R80: 23,316.01 | S80: =R80 -> 23,316.01
B81: RAMIREZ PEÑA | C81: ALIMENTOS | D81: VENTA DE SERVICIO | R81: 48,250.20 | S81: =R81 -> 48,250.20
B82: CENTRO FERRETERO DEL ESTES | C82: ARTICULOS FERRETERO | D82: VENTA DE SERVICIO | R82: 140,152.55 | S82: =R82 -> 140,152.55
B83: COMPU-OFFICE DOMINICANA | C83: COMPRA DE IMPRESORAS | D83: VENTA DE SERVICIO | R83: 2,119,626.40 | S83: =R83 -> 2,119,626.40
B84: SERVIAMED | C84: INSUMOS DE LABORATORIOS | D84: VENTA DE SERVICIO | R84: 1,897,661.47 | S84: =R84 -> 1,897,661.47
B85: AGUA JOEL | C85: BOTELLONES DE AGUA | D85: VENTA DE SERVICIO | R85: 8,240.00 | S85: =R85 -> 8,240.00
B86: ALMACENES IBERIA SRL | C86: MATERIAL DE LIMPIEZA | D86: VENTA DE SERVICIO | R86: 23,316.01 | S86: =R86 -> 23,316.01
B87: CENTRO FERRETERO DEL ESTE | C87: ARTICULOS FERRETERO | D87: VENTA DE SERVICIO | R87: 60,847.07 | S87: =R87 -> 60,847.07
B88: JARDIN ORIENTAL | C88: ALQUILER | D88: VENTA DE SERVICIO | R88: 1,180.00 | S88: =R88 -> 1,180.00
B89: JARDIN ORIENTAL | C89: ALQUILER | D89: VENTA DE SERVICIO | R89: 1,770.00 | S89: =R89 -> 1,770.00
B90: JARDIN ORIENTAL | C90: ALQUILER | D90: VENTA DE SERVICIO | R90: 2,950.00 | S90: =R90 -> 2,950.00
B91: JARDIN ORIENTAL | C91: ALQUILER | D91: VENTA DE SERVICIO | R91: 944.00 | S91: =R91 -> 944.00
B92: JARDIN ORIENTAL | C92: ALQUILER | D92: VENTA DE SERVICIO | R92: 1,534.00 | S92: =R92 -> 1,534.00
B93: TOTAL GENERAL | F93: =SUM(F10:F10) -> 0 | G93: =SUM(G9:G92) -> 742,000.00 | H93: =SUM(H9:H92) -> 152,070.00 | I93: =SUM(I9:I92) -> 0 | J93: =SUM(J9:J92) -> 0 | K93: =SUM(K9:K92) -> 0 | L93: =SUM(L9:L92) -> 1,280,606.80 | M93: =SUM(M9:M92) -> 4,897.00 | N93: =SUM(N9:N92) -> 12,200.00 | O93: =SUM(O9:O92) -> 53,382.67 | P93: =SUM(P9:P92) -> 147,232.95 | Q93: =SUM(Q9:Q92) -> 541,436.11 | R93: =SUM(R9:R92) -> 4,847,430.10 | S93: =SUM(S9:S92) -> 7,781,255.63
B95: Preparado Por: | C95: Revisado Por: | D95: Autorizado Por:
B98: Lic. Felicia Ubiera | C98: Lic. Crispin del Carmen R. | D98: Licda. Yudelky Jabalera
B99: Enc. De Cuentas por Cobrar | C99: Gerente Financiero | D99: Administradora
B335: TOTAL GENERAL | E335: =SUM(#REF!) ->  | F335: =SUM(#REF!) ->  | G335: =SUM(#REF!) ->  | H335: =SUM(#REF!) ->  | I335: =SUM(#REF!) ->  | J335: =SUM(#REF!) ->  | K335: =SUM(#REF!) ->  | L335: =SUM(#REF!) ->  | M335: =SUM(#REF!) ->  | N335: =SUM(#REF!) -> 
C336: GASTOS FIJOS
C337: EDEESTE | D337: SERVICIO DE ENERGIA ELECTRICA | N337: 6,170.09
C338: ESTACION DE COMBUSTIBLES | D338: COMBUSTIBLES | N338: 553,606.38
C339: AYUNTAMIENTO MUNICIPAL SPM | D339: SERVICIO DE ASEO | N339: 5,590.00
C340: ALQUILERES | D340: LOCAL DE LAS UNAP SRS ESTE | N340: 825,950.54
N341: =SUM(N337:N340) -> 1,391,317.01
B342: TOTAL GENERAL | N342: =N335+N341 -> 
B345: Preparado Por: | C345: Revisado Por: | D345: Autorizado Por:
B349: Lic. Felicia Ubiera | C349: Dr. Ricardo Julio Romero | D349: Licda. Yudelky Jabalera
B350: Enc. De Cuentas por Cobrar | C350: Director | D350: Administradora
